[Event "Cape Verde Championship Final 2022"]
[Site "Praia"]
[Date "2022.12.11"]
[Round "6.3"]
[White "Monteiro, Antonio David Cabral"]
[Black "Rodriguez Guevara, Celia M."]
[Result "1-0"]
[ECO "D02"]
[WhiteElo "1778"]
[BlackElo "1803"]
[Annotator "NA RC COMBH"]
[PlyCount "99"]
[EventDate "2022.12.04"]
[EventType "tourn"]
[EventCountry "KAP"]
[SourceTitle "playchess.com"]
[Source "ChessBase"]
[SourceQuality "1"]
[TimeControl "40/5400+30:1800+30"]

1. d4 {[%emt 0:02:37]} d5 {[%emt 0:03:39]} 2. Bf4 {[%emt 0:00:27]} Bf5 {[%emt 0:00:19]} 3. e3 {[%emt 0:00:18]} Nf6 {[%emt 0:00:35]} 4. Nf3 {[%emt 0:01:03]} e6 {[%emt 0:00:33]} 5. c4 {[%emt 0:02:43]} dxc4 {[%emt 0:09:39]} 6. Bxc4 {[%emt 0:01:12]} Nbd7 {[%emt 0:00:14]} 7. Nbd2 {[%emt 0:04:57]} Be7 {[%emt 0:01:23]} 8. h3 {[%emt 0:03:41]} h6 {[%emt 0:05:24]} 9. Rc1 {[%emt 0:04:57]} c6 {[%emt 0:01:20]} 10. O-O {[%emt 0:01:52]} O-O {[%emt 0:01:08]} 11. Re1 {[%emt 0:02:59]} Nb6 {[%emt 0:12:33]} 12. Be2 {[%emt 0:00:34]} Bd6 {[%emt 0:03:58]} 13. Ne5 {[%emt 0:01:50]} Qe7 {[%emt 0:04:22]} 14. a3 {[%emt 0:09:05]} Rfd8 {[%emt 0:01:50]} 15. Qb3 {[%emt 0:01:48]} Bh7 {[%emt 0:14:11]} 16. Bd3 {[%emt 0:10:08]} Bxd3 {[%emt 0:02:07]} 17. Nxd3 {[%emt 0:02:20]} Bxf4 {[%emt 0:02:22]} 18. Nxf4 {[%emt 0:00:08]} Nfd5 {[%emt 0:00:38]} 19. Nd3 {[%emt 0:02:31]} Nf6 {[%emt 0:04:42]} 20. Ne5 {[%emt 0:05:59]} Rd5 {[%emt 0:01:46]} 21. Qc2 {[%emt 0:05:05]} Rad8 {[%emt 0:01:02]} 22. Ndf3 {[%emt 0:01:25]} R5d6 {[%emt 0:07:13]} 23. b4 {[%emt 0:03:24]} Nfd7 {[%emt 0:08:19]} 24. Nd3 {[%emt 0:03:51]} e5 {[%emt 0:03:26]} 25. dxe5 {[%emt 0:09:02]} Rg6 $18 {[%emt 0:02:17]} (25... Rxd3 $16 26. Qxd3 Nc5 27. Qxd8+ (27. bxc5 $2 {perishes.} Rxd3 28. cxb6 axb6 $19) 27... Qxd8) 26. Nf4 {[%emt 0:02:52]} Rg5 {[%emt 0:04:03]} 27. Nxg5 {[%emt 0:01:13]} hxg5 {[%emt 0:00:33]} 28. Nd3 {[%emt 0:03:10]} Nxe5 {[%emt 0:00:38]} 29. Nxe5 {[%emt 0:00:25]} Qxe5 {[%emt 0:00:02]} 30. Red1 {[%emt 0:01:16]} Re8 {[%emt 0:00:47]} 31. Rd4 {[%emt 0:01:05]} Nd5 {[%emt 0:00:15]} 32. Rcd1 {[%emt 0:01:18]} f5 {[%emt 0:01:11]} 33. b5 {[%emt 0:01:10]} Ne7 {[%emt 0:01:43]} 34. Rd8 {[%emt 0:02:30]} Rxd8 {[%emt 0:01:00]} 35. Rxd8+ {[%emt 0:00:06]} Kh7 {[%emt 0:00:28]} 36. bxc6 {[%emt 0:03:22]} Nxc6 {[%emt 0:00:08]} 37. Rd1 {[%emt 0:00:46]} Kg6 {[%emt 0:01:30]} 38. g4 {[%emt 0:00:35]} Kf6 {[%emt 0:00:45]} 39. Qxf5+ {[%emt 0:01:08]} Qxf5 {[%emt 0:00:02]} 40. gxf5 {[%emt 0:00:27]} Kxf5 {[%emt 0:00:05]} 41. Rd7 {[%emt 0:30:40]} g6 {[%emt 0:02:32]} 42. Rxb7 {[%emt 0:00:00]} g4 {[%emt 0:00:35]} 43. Rc7 {[%emt 0:00:00]} Ne5 {[%emt 0:00:10]} 44. hxg4+ {[%emt 0:00:00]} Kxg4 {[%emt 0:00:29]} 45. Kg2 {[%emt 0:07:01]} a5 {[%emt 0:01:47]} 46. Rc5 {[%emt 0:00:00]} Nd3 {[%emt 0:01:02]} 47. Rxa5 {[%emt 0:00:00]} Ne1+ {[%emt 0:00:13]} 48. Kf1 {[%emt 0:00:00]} Nd3 {[%emt 0:00:03]} 49. Rd5 {[%emt 0:00:00]} Nb2 {[%emt 0:00:25]} 50. Rd2 {[%emt 0:00:00]} 1-0

[Event "Cape Verde Championship Final 2022"]
[Site "Praia"]
[Date "2022.12.11"]
[Round "6.4"]
[White "Teixeira, Gil"]
[Black "Monteiro, Antonio David Cabral"]
[Result "1-0"]
[ECO "B07"]
[WhiteElo "1763"]
[BlackElo "1778"]
[Annotator "NA RC COMBH"]
[PlyCount "131"]
[EventDate "2022.12.04"]
[EventType "tourn"]
[EventCountry "KAP"]
[SourceTitle "playchess.com"]
[Source "ChessBase"]
[SourceQuality "1"]
[TimeControl "40/5400+30:1800+30"]

1. e4 {[%emt 0:13:24]} d6 {[%emt 0:04:15]} 2. c3 {[%emt 0:00:50]} Nf6 {[%emt 0:00:28]} 3. d3 {[%emt 0:00:25]} e5 {[%emt 0:03:19]} 4. Ne2 {[%emt 0:00:38]} Be7 {[%emt 0:00:51]} 5. Ng3 {[%emt 0:00:30]} h5 {[%emt 0:00:33]} 6. Be2 {[%emt 0:00:31]} h4 {[%emt 0:00:07]} 7. Nf1 {[%emt 0:00:30]} h3 {[%emt 0:00:59]} 8. g3 {[%emt 0:00:38]} Nc6 {[%emt 0:00:41]} 9. Ne3 {[%emt 0:00:18]} Be6 {[%emt 0:00:33]} 10. Nd2 {[%emt 0:00:40]} Qd7 {[%emt 0:01:28]} 11. b4 {[%emt 0:00:20]} d5 {[%emt 0:01:11]} 12. a3 {[%emt 0:01:19]} d4 {[%emt 0:01:28]} 13. cxd4 {[%emt 0:01:21]} Nxd4 {[%emt 0:00:47]} 14. Bb2 {[%emt 0:00:46]} Nxe2 {[%emt 0:01:17]} 15. Qxe2 {[%emt 0:00:20]} Bd6 {[%emt 0:00:29]} 16. Ndc4 {[%emt 0:00:34]} Rd8 {[%emt 0:07:02]} 17. O-O {[%emt 0:02:54]} Bxc4 {[%emt 0:06:34]} 18. Nxc4 {[%emt 0:00:14]} Qe6 {[%emt 0:01:08]} 19. Rae1 {[%emt 0:05:38]} Nd7 {[%emt 0:02:58]} 20. d4 {[%emt 0:01:01]} f6 {[%emt 0:03:12]} 21. d5 {[%emt 0:00:54]} Qf7 {[%emt 0:02:38]} 22. Ne3 {[%emt 0:00:20]} Qh5 {[%emt 0:02:30]} 23. Nf5 {[%emt 0:01:34]} Qxe2 {[%emt 0:00:36]} 24. Rxe2 {[%emt 0:00:33]} Kf7 {[%emt 0:00:19]} 25. Rc2 {[%emt 0:00:21]} Rb8 {[%emt 0:03:24]} 26. Rfc1 {[%emt 0:00:15]} g6 {[%emt 0:01:16]} 27. Nxd6+ {[%emt 0:00:23]} cxd6 {[%emt 0:00:03]} 28. Rc7 {[%emt 0:00:29]} Ke7 {[%emt 0:00:21]} 29. g4 {[%emt 0:00:51]} f5 {[%emt 0:01:04]} 30. exf5 {[%emt 0:03:49]} gxf5 {[%emt 0:00:19]} 31. gxf5 {[%emt 0:00:22]} Rhg8+ {[%emt 0:00:50]} 32. Kh1 {[%emt 0:01:40]} Rgf8 {[%emt 0:00:32]} 33. Rg1 {[%emt 0:01:01]} Kd8 {[%emt 0:01:05]} 34. Rc3 {[%emt 0:00:06]} Rxf5 {[%emt 0:03:29]} 35. Rxh3 {[%emt 1:02:31]} Rxf2 {[%emt 0:50:14]} 36. Bc1 {[%emt 0:00:00]} Kc7 {[%emt 0:00:00]} 37. Rc3+ {[%emt 0:00:00]} Kd8 {[%emt 0:00:00]} 38. Be3 {[%emt 0:00:00]} Rf5 {[%emt 0:00:00]} 39. Rg8+ {[%emt 0:00:00]} Ke7 {[%emt 0:00:00]} 40. Rg7+ {[%emt 0:00:00]} Rf7 {[%emt 0:00:00]} 41. Rg6 {[%emt 0:00:00]} Rf5 {[%emt 0:00:00]} 42. Re6+ {[%emt 0:00:00]} Kf7 {[%emt 0:00:00]} 43. Rxd6 {[%emt 0:00:00]} Nf6 {[%emt 0:00:00]} 44. Rc7+ {[%emt 0:00:00]} Kg6 {[%emt 0:00:00]} 45. Rc2 {[%emt 0:00:00]} Rf3 {[%emt 0:00:00]} 46. Rg2+ {[%emt 0:00:00]} Kf7 {[%emt 0:00:00]} 47. Bg5 {[%emt 0:00:00]} Rf1+ {[%emt 0:00:07]} 48. Rg1 {[%emt 0:00:00]} Rxg1+ {[%emt 0:00:04]} 49. Kxg1 {[%emt 0:00:00]} Ne4 {[%emt 0:00:37]} 50. Rd7+ {[%emt 0:00:00]} Kg6 {[%emt 0:01:00]} 51. Be3 {[%emt 0:00:00]} Kf5 {[%emt 0:00:35]} 52. Rf7+ {[%emt 0:00:00]} Kg4 {[%emt 0:00:05]} 53. Kg2 {[%emt 0:00:00]} Rc8 {[%emt 0:00:33]} 54. h3+ {[%emt 0:00:00]} Kh5 {[%emt 0:00:16]} 55. Rf5+ {[%emt 0:00:00]} Kg6 {[%emt 0:00:22]} 56. Rxe5 {[%emt 0:00:00]} Rc2+ {[%emt 0:01:30]} 57. Kf3 {[%emt 0:00:00]} Nf6 {[%emt 0:01:12]} 58. Bd4 {[%emt 0:00:00]} Ra2 {[%emt 0:04:12]} 59. Re6 {[%emt 0:00:00]} Rxa3+ {[%emt 0:00:10]} 60. Kf4 {[%emt 0:00:00]} Rxh3 {[%emt 0:31:47]} 61. Rxf6+ {[%emt 0:43:00]} Kh7 {[%emt 0:00:00]} 62. Rf7+ {[%emt 0:00:00]} Kg8 {[%emt 0:00:00]} 63. Rxb7 {[%emt 0:00:00]} Rh4+ {[%emt 0:00:00]} 64. Ke5 {[%emt 0:00:00]} Rh5+ {[%emt 0:00:00]} 65. Kd6 {[%emt 0:00:00]} Rh6+ {[%emt 0:00:00]} 66. Kc5 {[%emt 0:00:00]} 1-0

[Event "Cape Verde Championship Final 2022"]
[Site "Praia"]
[Date "2022.12.11"]
[Round "7.1"]
[White "Monteiro, Antonio"]
[Black "Ortega Amarelle, Mariano"]
[Result "0-1"]
[ECO "B45"]
[WhiteElo "1719"]
[BlackElo "2471"]
[Annotator "TA"]
[PlyCount "54"]
[EventDate "2022.12.04"]
[EventType "tourn"]
[EventCountry "KAP"]
[SourceTitle "playchess.com"]
[Source "ChessBase"]
[SourceQuality "1"]
[TimeControl "40/5400+30:1800+30"]

{[%evp 12,54,18,-26,-18,-20,-4,-33,-25,-63,-74,-73,-61,-108,-73,-71,-37,-43,-29,-68,-12,0,-15,-18,-12,-58,-9,-76,-95,-91,-103,-639,-610,-937,-935,-1054,-1052,-1179,-1170,-1179,-1180,-1440,-1058,-1500,-1124]} 1. e4 {[%emt 0:06:33]} c5 {[%emt 0:00:15]} 2. Nf3 {[%emt 0:00:04]} e6 {[%emt 0:00:25]} 3. d4 {[%emt 0:00:11]} cxd4 {[%emt 0:00:07]} 4. Nxd4 {[%emt 0:00:03]} Nc6 {[%emt 0:00:19]} 5. Be2 {[%emt 0:00:10]} Nf6 {[%emt 0:00:19]} 6. Nc3 {[%emt 0:00:04]} Bb4 {[%emt 0:01:37]} 7. Bf3 {[%emt 0:05:03]} O-O {[%emt 0:02:39] B45: Sicilian Four Knights.} 8. O-O {[%emt 0:05:35]} Ne5 {[%emt 0:00:08]} 9. Qe2 {[%emt 0:02:01]} (9. Bf4 $5 {[%cal Rf4e5]} d6 10. Nce2 $11) 9... a6 {[%emt 0:00:50] [#] Black is slightly better.} 10. a3 $146 {[%emt 0:00:18]} ({Predecessor:} 10. Nd1 b5 11. a4 bxa4 12. Rxa4 a5 13. b3 Bb7 14. c3 Bc5 15. Re1 Qb6 16. Nb2 Nxf3+ 17. Qxf3 Nxe4 {0-1 (37) Hellman,G-Fine,R New York 1939}) 10... Bxc3 {[%emt 0:00:33]} 11. bxc3 {[%emt 0:00:02]} Qc7 {[%emt 0:00:10]} 12. Bd2 {[%emt 0:00:37]} (12. Bg5 $15) 12... b5 {[%emt 0:01:49]} 13. a4 {[%emt 0:02:44]} bxa4 {[%emt 0:00:13]} 14. Rxa4 {[%emt 0:00:36]} Bb7 {[%emt 0:00:09]} 15. Rb1 {[%emt 0:03:58]} d5 {[%emt 0:02:48]} (15... Rab8 $15) 16. exd5 $11 {[%emt 0:02:07]} Nxf3+ {[%emt 0:01:20]} 17. Nxf3 {[%emt 0:01:05]} Bxd5 {[%emt 0:01:26]} 18. c4 {[%emt 0:00:37]} (18. Ne5 $11) 18... Bc6 {[%emt 0:01:01]} (18... Bxf3 $15 {might be stronger.} 19. gxf3 Rfc8) 19. Rab4 {[%emt 0:01:07]} (19. Ba5 $11 {keeps the balance.} Rfb8 20. Rb3) 19... a5 $17 {[%emt 0:00:43] Black is more active.} 20. Rb6 {[%emt 0:00:31]} Nd7 {[%emt 0:04:24]} 21. Ng5 {[%emt 0:05:23][%mdl 8192] [#] This move loses the game for White.} Nxb6 $19 {[%emt 0:01:24] Black is clearly winning.} 22. Nxh7 {[%emt 0:02:54]} Kxh7 {[%emt 0:02:03]} 23. Qh5+ {[%emt 0:00:18]} Kg8 {[%emt 0:00:10]} 24. Rb3 {[%emt 0:00:49]} Be4 {[%emt 0:02:14]} 25. Rh3 {[%emt 0:00:46]} f6 {[%emt 0:00:16]} (25... Bxc2 $2 26. Qh8#) 26. f3 {[%emt 0:01:47]} Qe5 {[%emt 0:01:50]} 27. Qh4 {[%emt 0:02:33]} Qd4+ {[%emt 0:00:38] Weighted Error Value: White=1.37/Black=0.47} 0-1

[Event "Cape Verde Championship Final 2022"]
[Site "Praia"]
[Date "2022.12.11"]
[Round "7.2"]
[White "Rodriguez Guevara, Celia M."]
[Black "Teixeira, Gil"]
[Result "0-1"]
[ECO "C01"]
[WhiteElo "1803"]
[BlackElo "1763"]
[Annotator "NA RC COMBH"]
[PlyCount "173"]
[EventDate "2022.12.04"]
[EventType "tourn"]
[EventCountry "KAP"]
[SourceTitle "playchess.com"]
[Source "ChessBase"]
[SourceQuality "1"]
[TimeControl "40/5400+30:1800+30"]

1. e4 {[%emt 0:01:07]} e6 {[%emt 0:01:38]} 2. d4 {[%emt 0:00:58]} d6 {[%emt 0:00:40]} 3. Nf3 {[%emt 0:00:52]} Be7 {[%emt 0:00:11]} 4. Bd3 {[%emt 0:01:30]} Nd7 {[%emt 0:00:13]} 5. O-O {[%emt 0:01:01]} e5 {[%emt 0:01:01]} 6. dxe5 {[%emt 0:03:39]} dxe5 {[%emt 0:00:08]} 7. Nc3 {[%emt 0:01:20]} Ngf6 {[%emt 0:00:14]} 8. Be3 {[%emt 0:12:34]} O-O {[%emt 0:00:33]} 9. h3 {[%emt 0:01:49]} c6 {[%emt 0:00:29]} 10. Qe2 {[%emt 0:04:05]} Qc7 {[%emt 0:01:01]} 11. Bc4 {[%emt 0:11:24]} b5 {[%emt 0:02:25]} 12. Bb3 {[%emt 0:04:17]} a5 {[%emt 0:00:45]} 13. a4 {[%emt 0:01:10]} Ba6 {[%emt 0:01:13]} 14. axb5 {[%emt 0:06:45]} cxb5 {[%emt 0:00:14]} 15. Nxb5 {[%emt 0:01:00]} Qb7 {[%emt 0:00:19]} 16. Bc4 {[%emt 0:05:19]} Nxe4 {[%emt 0:02:04]} 17. Rxa5 {[%emt 0:03:06]} Bxb5 {[%emt 0:01:21]} 18. Rxb5 {[%emt 0:01:07]} Qc7 {[%emt 0:00:50]} 19. Bd5 {[%emt 0:00:25]} Nd6 {[%emt 0:00:42]} 20. Bxa8 {[%emt 0:02:01]} Nxb5 {[%emt 0:00:18]} 21. Bd5 {[%emt 0:03:50]} Nd6 {[%emt 0:00:33]} 22. Bb3 {[%emt 0:01:38]} Nf5 {[%emt 0:01:06]} 23. Bd2 {[%emt 0:00:35]} Bc5 {[%emt 0:12:40]} 24. Bc3 {[%emt 0:00:15]} Ng3 {[%emt 0:00:10]} 25. Qc4 {[%emt 0:01:30]} Nxf1 {[%emt 0:01:11]} 26. Kxf1 {[%emt 0:00:39]} h6 {[%emt 0:02:01]} 27. Qg4 {[%emt 0:01:19]} Qd6 {[%emt 0:01:47]} 28. Nh4 {[%emt 0:01:51]} Kh7 {[%emt 0:02:00]} 29. Nf5 {[%emt 0:01:55]} Qf6 {[%emt 0:02:08]} 30. Qf3 {[%emt 0:04:13]} (30. Be1 $1 $15) 30... g6 {[%emt 0:00:56]} 31. Ne3 {[%emt 0:00:54]} Qf4 {[%emt 0:06:01]} (31... Qxf3 $17 32. gxf3 Bd4) 32. Qxf4 {[%emt 0:02:24]} exf4 {[%emt 0:00:16]} 33. Nd5 {[%emt 0:00:54]} Bd6 $2 {[%emt 0:01:42] [#]} (33... g5 $11 {and Black has nothing to worry.}) 34. Ba4 $1 {[%emt 0:04:28]} Ne5 {[%emt 0:00:53]} 35. Nxf4 {[%emt 0:06:04]} Ra8 {[%emt 0:00:30]} 36. Bb3 {[%emt 0:00:30]} g5 {[%emt 0:00:30]} 37. Nd5 {[%emt 0:00:30]} Kg6 {[%emt 0:02:58]} 38. Ne3 {[%emt 0:00:12]} Ra1+ {[%emt 0:05:15]} 39. Ke2 {[%emt 0:00:11]} Ra8 {[%emt 0:00:42]} 40. Bd5 {[%emt 0:01:16]} Rf8 {[%emt 0:01:07]} 41. Be4+ {[%emt 0:31:46]} f5 {[%emt 0:30:24]} 42. Bd5 {[%emt 0:01:13]} h5 {[%emt 0:01:55]} 43. Nc4 {[%emt 0:06:16]} Nxc4 {[%emt 0:00:19]} 44. Bxc4 {[%emt 0:00:01]} Re8+ {[%emt 0:00:21]} 45. Kf1 {[%emt 0:00:07]} Be5 {[%emt 0:01:59]} 46. Bxe5 {[%emt 0:00:09]} Rxe5 {[%emt 0:00:29]} 47. Bd3 {[%emt 0:00:12]} Kf6 {[%emt 0:00:05]} 48. f3 {[%emt 0:00:00]} h4 {[%emt 0:00:00]} 49. Kf2 {[%emt 0:00:00]} Ra5 {[%emt 0:00:00]} 50. b4 {[%emt 0:00:00] [#]} (50. f4 $142) 50... Ra4 $1 {[%emt 0:00:00]} 51. b5 {[%emt 0:00:00]} Rb4 {[%emt 0:00:00]} 52. c4 {[%emt 0:00:00]} Ke5 {[%emt 0:00:00]} 53. c5 {[%emt 0:00:00]} Kd5 {[%emt 0:00:00]} 54. c6 {[%emt 0:00:00]} Kd6 {[%emt 0:00:00]} 55. Bxf5 {[%emt 0:00:00]} Rxb5 {[%emt 0:00:00]} 56. Be4 {[%emt 0:00:00]} Rb3 {[%emt 0:00:00]} 57. g4 {[%emt 0:00:00]} (57. Ke2 $17 {was called for.}) 57... Ke5 {[%emt 0:00:00]} 58. Bf5 {[%emt 0:00:00]} (58. c7 Rc3 59. c8=B Rxc8 $19) 58... Rc3 {[%emt 0:00:00]} 59. Be4 {[%emt 0:00:00]} Kd4 {[%emt 0:00:00]} 60. Ke2 {[%emt 0:00:00]} Ra3 {[%emt 0:00:00]} 61. Bf5 $17 {[%emt 0:00:00] [#]} (61. c7 Rc3 62. Ba8 Rc2+ 63. Kd1 Rxc7 $19) 61... Re3+ $1 {[%emt 0:00:00]} 62. Kf2 {[%emt 0:03:42]} Rc3 {[%emt 0:00:00]} 63. Be4 {[%emt 0:00:04]} Ke5 {[%emt 0:00:00]} 64. Ke2 {[%emt 0:00:08]} Kd6 {[%emt 0:00:00]} 65. Kf2 {[%emt 0:00:28]} Rc1 {[%emt 0:00:00]} 66. Kg2 {[%emt 0:00:52]} Ra1 {[%emt 0:00:00]} 67. Kf2 {[%emt 0:00:09]} Ra2+ {[%emt 0:00:00]} 68. Kg1 {[%emt 0:00:07]} Rd2 {[%emt 0:00:00]} 69. Kh1 {[%emt 0:00:17]} Rd1+ {[%emt 0:00:00]} 70. Kg2 {[%emt 0:00:03]} Rc1 {[%emt 0:00:00]} 71. Kf2 {[%emt 0:00:17]} Ke5 {[%emt 0:00:00]} 72. Ke2 {[%emt 0:02:23]} Rg1 {[%emt 0:00:00]} 73. Kf2 {[%emt 0:01:04]} Rc1 {[%emt 0:00:00]} 74. Ke2 {[%emt 0:00:11]} Rh1 {[%emt 0:00:00]} 75. Kf2 {[%emt 0:00:27]} Kf4 {[%emt 0:00:00]} 76. Ke2 {[%emt 0:04:07]} Rc1 {[%emt 0:00:00]} 77. Kd2 {[%emt 0:01:14]} Rc5 {[%emt 0:00:00]} 78. Kd3 {[%emt 0:00:21]} Ke5 {[%emt 0:00:00]} 79. Kd2 {[%emt 0:00:07]} Ra5 {[%emt 0:00:00]} 80. Bf5 {[%emt 0:00:19]} Kd6 {[%emt 0:00:00]} 81. Be4 {[%emt 0:00:02]} Ra2+ {[%emt 0:00:00]} 82. Ke3 {[%emt 0:00:30]} Rh2 {[%emt 0:00:00]} 83. f4 {[%emt 0:01:35]} Rxh3+ {[%emt 0:00:00]} 84. Kf2 {[%emt 0:00:03]} gxf4 {[%emt 0:00:00]} 85. g5 {[%emt 0:00:13]} Rg3 {[%emt 0:00:00]} 86. g6 {[%emt 0:00:01]} h3 {[%emt 0:00:05]} 87. Bf3 0-1

[Event "Cape Verde Championship Final 2022"]
[Site "Praia"]
[Date "2022.12.11"]
[Round "7.3"]
[White "Moes Joaquim, Carlos"]
[Black "Monteiro, Antonio David Cabral"]
[Result "0-1"]
[ECO "A51"]
[WhiteElo "1448"]
[BlackElo "1778"]
[Annotator "NA RC COMBH"]
[PlyCount "71"]
[EventDate "2022.12.04"]
[EventType "tourn"]
[EventCountry "KAP"]
[SourceTitle "playchess.com"]
[Source "ChessBase"]
[SourceQuality "1"]
[TimeControl "40/5400+30:1800+30"]

1. d4 {[%emt 0:02:27]} Nf6 {[%emt 0:01:07]} 2. c4 {[%emt 0:00:07]} e5 {[%emt 0:00:28]} 3. d5 {[%emt 0:00:28]} Bc5 {[%emt 0:00:31]} 4. Nf3 {[%emt 0:05:23]} d6 {[%emt 0:01:46]} 5. Nc3 {[%emt 0:05:10]} a5 {[%emt 0:01:14]} 6. a3 {[%emt 0:00:08]} O-O {[%emt 0:01:32]} 7. e3 {[%emt 0:03:38]} Nbd7 {[%emt 0:02:38]} 8. Be2 {[%emt 0:00:28]} h6 {[%emt 0:01:29]} 9. Qc2 {[%emt 0:02:36]} Re8 {[%emt 0:02:00]} 10. h3 {[%emt 0:01:16]} Nh7 {[%emt 0:05:34]} 11. g4 {[%emt 0:01:14]} Ng5 {[%emt 0:03:48]} 12. Nxg5 {[%emt 0:03:59]} hxg5 {[%emt 0:08:10]} 13. Bd2 {[%emt 0:00:19]} c6 {[%emt 0:04:32]} 14. O-O-O {[%emt 0:01:19]} cxd5 {[%emt 0:02:12]} 15. Nxd5 {[%emt 0:00:23]} Nf6 {[%emt 0:01:12]} 16. e4 {[%emt 0:00:50]} Nxd5 {[%emt 0:01:28]} 17. exd5 {[%emt 0:00:05]} Bxf2 {[%emt 0:04:23]} 18. Qe4 {[%emt 0:00:29]} Bg3 {[%emt 0:02:46]} 19. Bd3 {[%emt 0:00:45]} g6 {[%emt 0:01:14]} 20. h4 {[%emt 0:05:03]} gxh4 {[%emt 0:03:04]} 21. Rdg1 {[%emt 0:09:15]} f5 {[%emt 0:16:56]} 22. gxf5 {[%emt 0:01:33]} Bxf5 {[%emt 0:00:37]} 23. Qe2 {[%emt 0:02:23]} Qf6 {[%emt 0:04:35]} 24. Bh6 {[%emt 0:06:48]} Bf4+ {[%emt 0:00:47]} 25. Bxf4 {[%emt 0:00:12]} exf4 {[%emt 0:00:02]} 26. Bxf5 {[%emt 0:02:21]} Rxe2 {[%emt 0:01:44]} 27. Rxg6+ {[%emt 0:00:34]} Kf7 {[%emt 0:01:03]} 28. Rxf6+ {[%emt 0:00:14]} Kxf6 {[%emt 0:00:19]} 29. Be6 {[%emt 0:00:39]} Rh8 {[%emt 0:01:01]} 30. Rf1 {[%emt 0:00:50]} Ke5 {[%emt 0:00:26]} 31. b4 {[%emt 0:00:43]} axb4 {[%emt 0:01:19]} 32. axb4 {[%emt 0:00:13]} Ra8 {[%emt 0:00:31]} 33. Kd1 {[%emt 0:00:17]} Rh2 {[%emt 0:00:52]} 34. Re1+ {[%emt 0:01:14]} Kd4 {[%emt 0:00:46]} 35. Re2 {[%emt 0:01:28]} Ra1+ {[%emt 0:00:28]} 36. Kd2 {[%emt 0:00:59]} 0-1

[Event "Cape Verde Championship Final 2022"]
[Site "Praia"]
[Date "2022.12.11"]
[Round "7.4"]
[White "Barros, Luis"]
[Black "Vaz, Jose Carlos"]
[Result "1/2-1/2"]
[ECO "C02"]
[WhiteElo "1666"]
[BlackElo "1787"]
[Annotator "NA RC COMBH"]
[PlyCount "83"]
[EventDate "2022.12.04"]
[EventType "tourn"]
[EventCountry "KAP"]
[SourceTitle "playchess.com"]
[Source "ChessBase"]
[SourceQuality "1"]
[TimeControl "40/5400+30:1800+30"]

1. e4 {[%emt 0:00:02]} c5 {[%emt 0:09:54]} 2. c3 {[%emt 0:00:22]} e6 {[%emt 0:01:55]} 3. Nf3 {[%emt 0:00:20]} Nc6 {[%emt 0:00:19]} 4. d4 {[%emt 0:00:11]} d5 {[%emt 0:00:23]} 5. e5 {[%emt 0:00:47]} Qb6 {[%emt 0:00:47]} 6. Bd3 {[%emt 0:01:32]} Bd7 {[%emt 0:00:36]} 7. b3 {[%emt 0:04:45]} cxd4 {[%emt 0:00:39]} 8. c4 {[%emt 0:02:15]} dxc4 {[%emt 0:00:35]} 9. Bxc4 {[%emt 0:00:31]} Nxe5 {[%emt 0:02:05]} 10. Nbd2 {[%emt 0:03:32]} Nxf3+ {[%emt 0:00:29]} 11. Nxf3 {[%emt 0:00:16]} e5 {[%emt 0:01:02]} 12. O-O {[%emt 0:00:44]} f6 {[%emt 0:01:10]} 13. Re1 {[%emt 0:00:32]} O-O-O {[%emt 0:00:21]} 14. a4 {[%emt 0:00:36]} a5 {[%emt 0:00:25]} 15. Bd2 {[%emt 0:01:32]} Bb4 {[%emt 0:00:18]} 16. Rc1 {[%emt 0:01:09]} Kb8 {[%emt 0:00:34]} 17. Bxb4 {[%emt 0:01:59]} Qxb4 {[%emt 0:00:39]} 18. Bd5 {[%emt 0:00:28]} Ne7 {[%emt 0:01:34]} 19. Be4 {[%emt 0:06:31]} Nc6 {[%emt 0:00:23]} 20. Nd2 {[%emt 0:03:00]} Rde8 {[%emt 0:02:30]} 21. Qe2 {[%emt 0:01:12]} f5 {[%emt 0:00:49]} 22. Rc4 {[%emt 0:01:10]} Qb6 {[%emt 0:00:53]} 23. Bd5 {[%emt 0:00:51]} Rhf8 {[%emt 0:00:35]} 24. Rec1 {[%emt 0:00:42]} Nb4 {[%emt 0:00:58]} 25. Rc7 {[%emt 0:03:23]} Nxd5 {[%emt 0:01:55]} 26. Rxd7 {[%emt 0:00:33]} Nc3 {[%emt 0:00:16]} 27. Qe1 {[%emt 0:05:35]} Qc6 {[%emt 0:04:47]} 28. Rxg7 {[%emt 0:04:38]} Ne2+ {[%emt 0:00:48]} 29. Qxe2 {[%emt 0:00:12]} Qxc1+ {[%emt 0:00:07]} 30. Nf1 {[%emt 0:00:07]} Qc6 {[%emt 0:00:58]} 31. h3 {[%emt 0:03:09]} e4 {[%emt 0:00:09]} 32. Qd2 {[%emt 0:01:22]} Qd5 {[%emt 0:00:32]} 33. Ne3 {[%emt 0:00:40]} Qe5 {[%emt 0:00:19]} 34. Rxh7 {[%emt 0:05:57]} dxe3 {[%emt 0:00:37]} 35. Qd7 {[%emt 0:01:09]} exf2+ {[%emt 0:00:50]} 36. Kf1 {[%emt 0:00:46]} Qa1+ {[%emt 0:00:40]} 37. Kxf2 {[%emt 0:00:27]} e3+ {[%emt 0:06:26]} 38. Kg3 {[%emt 0:00:07]} Qe5+ {[%emt 0:00:54]} 39. Kf3 {[%emt 0:02:57]} Qe4+ {[%emt 0:00:39]} 40. Kg3 {[%emt 0:00:44]} e2 {[%emt 0:00:32]} 41. Qc7+ {[%emt 0:30:43]} Ka8 {[%emt 0:30:56]} 42. Qxa5+ {[%emt 0:44:02]} 1/2-1/2